bitfinex/quotes_SOLUSD_20250212
["timestamp","ask_amount","ask_price","bid_price","bid_amount"]
[1739342774381,10.26621545,194.64,194.62,0.03]
[1739342774580,50.70362725,194.63,194.61,0.03]
[1739342774796,10.14072545,194.62,194.61,0.03]
[1739342775108,50.70362725,194.62,194.61,0.03]
[1739342775611,50.70362725,194.62,194.58,0.03]
[1739342775909,15.88374138,194.59,194.58,0.03]
[1739342776907,15.88374138,194.6,194.58,0.03]
[1739342778183,15.88374138,194.61,194.58,13.44184853]
[1739342778598,15.88374138,194.62,194.58,127.44184853]
[1739342778912,15.88374138,194.63,194.59,0.25098]
[1739342779105,15.88374138,194.63,194.59,114.25098]
[1739342779325,15.88374138,194.61,194.59,114.25098]
[1739342779610,15.88374138,194.63,194.6,13.41184853]
[1739342779817,15.88374138,194.64,194.61,5.1384]
[1739342780109,15.88374138,194.63,194.61,5.1384]
[1739342780313,15.88374138,194.62,194.61,18.55024853]
[1739342781017,15.88374138,194.63,194.61,18.55024853]
[1739342781318,15.88374138,194.64,194.61,18.55024853]
[1739342781504,15.88374138,194.64,194.62,13.41184853]
[1739342781808,15.88374138,194.66,194.63,5.1379]
[1739342782007,15.88374138,194.66,194.63,119.1379]
[1739342782212,15.88374138,194.66,194.64,13.41184853]
[1739342782507,15.88374138,194.65,194.63,119.1379]
[1739342782716,15.88374138,194.64,194.63,18.54974853]
[1739342784112,15.88374138,194.65,194.63,18.54974853]
[1739342784414,15.88374138,194.64,194.62,193.87946546]
[1739342785499,15.88374138,194.65,194.62,193.87946546]
[1739342786013,15.88374138,194.63,194.58,199.04846546]
[1739342786198,15.88374138,194.6,194.58,79.90946546]
[1739342786926,15.88374138,194.59,194.58,79.90946546]
[1739342787222,15.88374138,194.62,194.58,85.04866546]
[1739342787404,15.88374138,194.63,194.58,85.04866546]
[1739342787595,15.88374138,194.63,194.58,79.90946546]
[1739342787790,15.88374138,194.63,194.59,13.41184853]
[1739342788023,15.88374138,194.64,194.59,13.66282853]
[1739342788196,15.88374138,194.63,194.59,13.66282853]
[1739342788603,1.0272,194.69,194.58,79.90946546]
[1739342788604,15.88374138,194.61,194.58,79.90946546]
[1739342788927,15.88374138,194.6,194.58,79.90946546]
[1739342791306,15.88374138,194.62,194.58,79.90946546]
[1739342792207,15.88374138,194.64,194.58,79.90946546]
[1739342794499,16.91124138,194.64,194.58,79.90946546]
[1739342794701,16.97424138,194.64,194.58,79.90946546]
[1739342794903,15.94674138,194.64,194.58,79.90946546]
[1739342795414,16.97424138,194.64,194.58,79.90946546]
[1739342798824,15.94674138,194.64,194.59,13.41184853]
[1739342799128,15.94674138,194.64,194.62,0.25098]
[1739342799129,0.063,194.64,194.62,0.25098]
[1739342799313,0.063,194.64,194.62,13.66282853]
[1739342799930,0.063,194.64,194.62,13.41184853]
[1739342800126,15.94674138,194.64,194.61,114.0]
[1739342800427,15.88374138,194.63,194.61,114.0]
[1739342800596,15.94674138,194.64,194.61,114.0]
[1739342802321,0.063,194.64,194.61,114.0]
[1739342803331,0.063,194.64,194.6,18.55054853]
[1739342804815,0.063,194.64,194.61,0.25098]
[1739342805122,0.063,194.64,194.61,5.38938]
[1739342806107,0.063,194.64,194.61,5.1384]
[1739342806307,0.063,194.64,194.6,18.55054853]
[1739342806531,15.94674138,194.64,194.6,13.41184853]
[1739342807622,15.94674138,194.64,194.59,199.01836546]
[1739342808441,15.94674138,194.64,194.59,193.87946546]
[1739342808627,15.88374138,194.62,194.59,193.87946546]
[1739342809341,15.88374138,194.62,194.59,79.87946546]
[1739342809746,15.88374138,194.61,194.59,79.87946546]
[1739342812046,15.88374138,194.61,194.59,85.01836546]
[1739342812552,15.88374138,194.63,194.59,85.01836546]
[1739342814549,0.063,194.64,194.59,85.01836546]
[1739342818237,10.15614666,194.63,194.59,79.87946546]
[1739342818427,10.15614666,194.63,194.59,79.90946546]
[1739342820253,10.15614666,194.62,194.59,79.90946546]
[1739342821040,10.15614666,194.63,194.59,79.90946546]
[1739342823566,10.15614666,194.61,194.59,0.03]
[1739342823948,10.15614666,194.6,194.59,0.03]
[1739342825355,10.15614666,194.61,194.59,0.03]
[1739342827833,10.15614666,194.62,194.59,0.03]
[1739342828033,10.15614666,194.63,194.59,0.03]
[1739342828255,10.15614666,194.62,194.59,0.03]
[1739342828443,10.15614666,194.61,194.59,0.03]
[1739342830262,10.15614666,194.63,194.59,0.03]
[1739342830461,10.21914666,194.64,194.59,0.03]
[1739342830766,0.063,194.63,194.59,0.03]
[1739342832167,10.21914666,194.63,194.59,0.03]
[1739342834852,10.15614666,194.61,194.59,0.03]
[1739342835065,0.063,194.63,194.59,0.03]
[1739342835066,10.15614666,194.6,194.59,0.03]
[1739342837863,10.15614666,194.61,194.59,0.03]
[1739342838054,10.15614666,194.62,194.59,0.03]
[1739342839867,10.15614666,194.61,194.59,0.03]
[1739342841965,10.15614666,194.6,194.59,0.03]
[1739342847882,11.18384666,194.6,194.59,0.03]
[1739342848877,10.15614666,194.6,194.59,0.03]
[1739342849379,11.18384666,194.6,194.59,0.03]
[1739342849675,10.15614666,194.6,194.59,0.03]
[1739342852584,11.18384666,194.6,194.59,0.03]
[1739342854884,52.9339233,194.6,194.59,0.03]
[1739342855076,51.9339233,194.6,194.59,0.03]
[1739342856687,11.18384666,194.6,194.59,0.03]
[1739342858665,51.8084333,194.6,194.59,0.03]
[1739342860393,11.18384666,194.6,194.59,0.03]
[1739342860571,51.8084333,194.6,194.59,0.03]
[1739342860777,51.9339233,194.6,194.59,0.03]
[1739342860986,11.18384666,194.6,194.59,0.03]
[1739342866492,51.8084333,194.6,194.59,0.03]
[1739342866989,51.9339233,194.6,194.59,0.03]
[1739342867197,52.9339233,194.6,194.59,0.03]
[1739342869081,53.9339233,194.6,194.59,0.03]
[1739342869396,1.0,194.58,194.57,0.03]
[1739342869585,11.15614666,194.58,194.57,0.03]
[1739342869976,12.15614666,194.58,194.57,0.03]
[1739342870397,13.18394666,194.58,194.57,0.03]
[1739342870897,10.15614666,194.49,194.46,7.7533]
[1739342872196,10.15614666,194.48,194.44,13.41184853]
[1739342872396,10.15614666,194.46,194.41,7.9879]
[1739342872595,10.15614666,194.46,194.42,13.41184853]
[1739342874502,10.15614666,194.46,194.42,18.55534853]
[1739342876197,10.15614666,194.47,194.42,18.55534853]
[1739342876401,10.15614666,194.49,194.42,28.71149519]
[1739342876606,10.15614666,194.5,194.44,10.15614666]
[1739342877705,10.15614666,194.5,194.45,5.1427]
[1739342879300,10.15614666,194.52,194.46,13.41184853]
[1739342879705,10.15614666,194.51,194.46,13.41184853]
[1739342880188,10.15614666,194.5,194.44,15.55002666]
[1739342880391,21.0279,194.56,194.44,15.55002666]
[1739342880392,10.15614666,194.51,194.44,15.55002666]
[1739342880607,10.15614666,194.52,194.46,13.41184853]
[1739342880817,10.15614666,194.52,194.46,13.44184853]
[1739342881185,0.12549,194.58,194.49,13.41184853]
[1739342881186,10.15614666,194.54,194.49,13.41184853]
[1739342881391,10.15614666,194.55,194.5,5.1413]
[1739342881695,10.15614666,194.53,194.49,13.41184853]
[1739342881879,10.15614666,194.53,194.49,18.55344853]
[1739342882285,10.15614666,194.54,194.49,18.55344853]
[1739342883016,10.15614666,194.56,194.51,25.1411]
[1739342883580,10.15614666,194.54,194.51,20.0]
[1739342884214,10.15614666,194.55,194.51,20.0]
[1739342884407,10.15614666,194.56,194.52,13.41184853]
[1739342884825,10.15614666,194.57,194.52,13.41184853]
[1739342885013,10.15614666,194.56,194.47,12.98069]
[1739342885214,10.15614666,194.56,194.39,0.03]
[1739342885215,19.47783222,194.4,194.39,0.03]
[1739342885399,20.0,194.37,194.31,8.07699487]
[1739342885605,10.15614666,194.32,194.31,8.07699487]
[1739342885795,10.28163666,194.32,194.31,8.07699487]
[1739342885995,1.12549,194.31,194.29,16.15398975]
[1739342886200,51.7807333,194.3,194.26,0.03]
[1739342886500,10.15614666,194.27,194.26,0.03]
[1739342887608,15.93451383,194.27,194.26,0.03]
[1739342888218,17.06000383,194.27,194.26,0.03]
[1739342889125,16.06000383,194.27,194.26,0.03]
[1739342890218,15.93451383,194.27,194.26,0.03]
[1739342892515,15.93451383,194.26,194.19,15.93451383]
[1739342892927,15.93451383,194.28,194.21,15.93451383]
[1739342893115,7.97563777,194.3,194.26,0.03]
[1739342893428,23.9101516,194.31,194.26,0.03]
[1739342894342,15.93451383,194.3,194.26,0.03]
[1739342896827,23.9101516,194.3,194.2,13.66282853]
[1739342897029,15.93451383,194.28,194.22,15.93451383]
[1739342897234,15.93451383,194.29,194.22,15.93451383]
[1739342898133,15.93451383,194.31,194.22,21.08321383]
[1739342899025,15.93451383,194.31,194.24,15.93451383]
[1739342899345,15.93451383,194.31,194.12,15.93451383]
[1739342899346,1.12549,194.24,194.12,15.93451383]
[1739342899513,15.93451383,194.2,194.11,5.1517]
[1739342899829,0.12549,194.24,194.14,20.0]
[1739342899830,15.93451383,194.18,194.14,20.0]
[1739342900005,15.93451383,194.17,194.11,5.1517]
[1739342901143,15.93451383,194.19,194.12,15.93451383]
[1739342901318,15.93451383,194.18,194.11,21.08621383]
[1739342901639,15.93451383,194.19,194.12,15.93451383]
[1739342902014,15.93451383,194.21,194.14,15.93451383]
[1739342902214,15.93451383,194.19,194.12,21.08571383]
[1739342902628,15.93451383,194.13,194.09,0.04]
[1739342902814,15.93451383,194.1,194.09,0.04]
[1739342904436,17.60550383,194.1,194.09,0.04]
[1739342905543,33.54001766,194.1,194.09,0.04]
[1739342905724,33.54001766,194.1,193.9,12.8932]
[1739342905725,15.93451383,193.99,193.9,12.8932]
[1739342905920,15.93451383,193.97,193.9,28.82771383]
[1739342906107,15.93451383,193.99,193.94,20.0]
[1739342906306,0.12549,194.05,193.93,20.0]
[1739342906609,0.12549,194.05,193.94,20.0]
[1739342906817,15.93451383,194.0,193.93,15.93451383]
[1739342907442,15.93451383,194.0,193.94,20.0]
[1739342907612,15.93451383,194.01,193.94,25.1561]
[1739342907937,15.93451383,194.01,193.94,41.09061383]
[1739342908433,2.67149,194.05,193.94,41.09061383]
[1739342908434,15.93451383,194.0,193.94,25.1561]
[1739342908933,15.93451383,194.0,193.94,41.09061383]
[1739342909136,15.93451383,194.0,193.94,25.1561]
[1739342909324,15.93451383,193.99,193.94,17.0]
[1739342909634,15.93451383,193.97,193.9,15.93451383]
[1739342909812,15.93451383,193.97,193.89,5.1575]
[1739342909813,15.93451383,193.99,193.92,15.93451383]
[1739342910011,15.93451383,194.01,193.94,15.93451383]
[1739342910238,15.93451383,194.0,193.93,15.93451383]
[1739342911431,15.93451383,194.0,193.94,5.1562]
[1739342911639,15.93451383,194.04,193.96,15.93451383]
[1739342911940,15.93451383,194.06,193.99,15.93451383]
[1739342912235,15.93451383,194.05,193.99,15.93451383]
[1739342912413,15.93451383,194.04,193.97,35.93451383]
[1739342913035,15.93451383,194.03,193.97,35.93451383]
[1739342913438,15.93451383,194.05,193.98,21.08961383]
[1739342913939,15.93451383,194.05,193.99,15.93451383]
[1739342914325,15.93451383,194.05,193.98,21.08961383]
[1739342914922,15.93451383,194.06,193.99,15.93451383]
[1739342915116,15.93451383,194.05,193.98,21.08961383]
[1739342915415,15.93451383,194.04,193.98,5.1551]
[1739342915939,15.93451383,194.06,193.96,5.1557]
[1739342917039,15.93451383,194.06,193.97,15.93451383]
[1739342917533,15.93451383,194.08,193.95,15.93451383]
[1739342917747,17.48011383,194.1,193.99,15.93451383]
[1739342918040,15.93451383,194.08,194.01,15.93451383]
[1739342918221,15.93451383,194.1,194.04,15.93451383]
[1739342918428,15.93451383,194.12,194.06,15.93451383]
[1739342918624,1.5453,194.14,194.03,15.93451383]
[1739342918625,15.93451383,194.09,194.03,15.93451383]
[1739342918929,15.99751383,194.08,194.01,20.0]
[1739342919132,0.063,194.08,194.01,20.0]
[1739342919537,0.063,194.08,194.02,15.93451383]
[1739342920127,0.063,194.08,194.03,5.1538]
[1739342920326,0.063,194.08,194.03,21.08831383]
[1739342920835,0.063,194.08,194.04,15.93451383]
[1739342921043,0.063,194.08,194.05,15.93451383]
[1739342921248,0.063,194.08,194.05,21.08771383]
[1739342921941,0.063,194.08,194.07,15.93451383]
[1739342923144,0.063,194.08,194.04,5.1535]
[1739342923347,15.99751383,194.08,194.02,5.1539]
[1739342923523,15.99751383,194.08,194.02,21.08841383]
[1739342924053,0.063,194.08,194.02,21.08841383]
[1739342924234,15.93451383,194.1,194.04,15.93451383]
[1739342924717,15.93451383,194.11,194.04,15.93451383]
[1739342925238,15.93451383,194.12,194.06,15.93451383]
[1739342925836,15.93451383,194.12,194.05,15.93451383]
[1739342926222,4.8628,194.16,194.03,15.93451383]
[1739342926223,15.93451383,194.1,194.03,15.93451383]
[1739342926942,15.93451383,194.1,194.02,15.93451383]
[1739342927115,15.93451383,194.09,194.02,15.93451383]
[1739342927320,15.93451383,194.1,194.03,5.1538]
[1739342927622,15.93451383,194.1,194.03,21.08831383]
[1739342927817,15.93451383,194.11,194.04,15.93451383]
[1739342928032,15.93451383,194.13,194.06,15.93451383]
[1739342928215,15.93451383,194.15,194.08,15.93451383]
[1739342928421,1.5451,194.16,194.1,15.93451383]
[1739342928422,15.93451383,194.16,194.1,15.93451383]
[1739342929341,15.93451383,194.17,194.11,21.08591383]
[1739342930126,15.93451383,194.17,194.11,5.1514]
[1739342930637,15.93451383,194.17,194.11,21.08591383]
[1739342931036,15.93451383,194.17,194.11,5.1514]
[1739342931230,0.063,194.16,194.11,5.1514]
[1739342931550,0.063,194.16,194.12,15.93451383]
[1739342933636,0.063,194.16,194.11,21.08591383]
[1739342934246,0.063,194.16,194.1,15.93451383]
[1739342934726,0.063,194.16,194.11,15.93451383]
[1739342935723,0.063,194.16,194.11,21.08601383]
[1739342936723,0.063,194.16,194.12,15.93451383]
[1739342937050,0.063,194.16,194.14,15.93451383]
[1739342937247,0.063,194.16,194.12,15.93451383]
[1739342937428,0.063,194.16,194.11,21.08601383]
[1739342937822,0.063,194.16,194.13,15.93451383]
[1739342938144,0.063,194.16,194.15,15.93451383]
[1739342939854,0.063,194.16,194.15,21.08511383]
[1739342941047,0.063,194.16,194.15,5.1506]
[1739342942748,0.063,194.16,194.15,21.08511383]
[1739342942937,0.063,194.16,194.15,34.74794236]
[1739342943326,0.063,194.16,194.15,21.08511383]
[1739342944544,15.93451383,194.26,194.18,20.0]
[1739342944849,3.0475,194.28,194.2,15.93451383]
[1739342944850,15.93451383,194.27,194.2,15.93451383]
[1739342945350,15.93451383,194.28,194.22,15.93451383]
[1739342945743,15.93451383,194.29,194.22,15.93451383]
[1739342945930,15.93451383,194.28,194.22,15.93451383]
[1739342946132,15.93451383,194.27,194.21,15.93451383]
[1739342946348,15.93451383,194.27,194.21,21.08331383]
[1739342946520,0.063,194.3,194.21,21.08331383]
[1739342946521,15.93451383,194.28,194.21,21.08331383]
[1739342946944,15.93451383,194.27,194.21,5.1488]
[1739342947946,15.93451383,194.29,194.22,15.93451383]
[1739342948145,15.99751383,194.3,194.24,15.93451383]
[1739342948353,15.99751383,194.3,194.23,15.93451383]
[1739342948649,15.93451383,194.29,194.22,15.93451383]
[1739342948857,15.93451383,194.27,194.21,15.93451383]
[1739342949439,15.99751383,194.3,194.23,15.93451383]
[1739342949652,15.99751383,194.3,194.24,15.93451383]
[1739342949962,0.063,194.3,194.24,15.93451383]
[1739342950333,0.063,194.3,194.2,24.5338]
[1739342950334,0.063,194.3,194.25,15.93451383]
[1739342950549,15.93451383,194.29,194.23,15.93451383]
[1739342950729,15.93451383,194.29,194.23,35.93451383]
[1739342951049,15.99751383,194.3,194.23,35.93451383]
[1739342951927,0.063,194.3,194.26,15.93451383]
[1739342952249,0.063,194.3,194.27,15.93451383]
[1739342954050,0.063,194.3,194.27,21.08191383]
[1739342954243,0.063,194.3,194.28,15.93451383]
[1739342954848,0.063,194.3,194.29,15.93451383]
[1739342955530,0.063,194.3,194.28,15.93451383]
[1739342955730,0.063,194.3,194.27,21.08191383]
[1739342956038,0.063,194.3,194.28,15.93451383]
[1739342956532,0.063,194.3,194.29,21.08141383]
[1739342958460,0.063,194.36,194.32,20.0]
[1739342958644,0.063,194.36,194.35,15.93451383]
[1739342959038,0.063,194.36,194.33,15.93451383]
[1739342959433,0.063,194.36,194.35,15.93451383]
[1739342959639,0.063,194.36,194.35,20.0]
[1739342960572,0.063,194.36,194.32,15.93451383]
[1739342960739,0.063,194.36,194.32,21.08041383]
[1739342961662,0.063,194.36,194.33,15.93451383]
[1739342962472,0.063,194.36,194.33,21.08011383]
[1739342962963,0.063,194.36,194.34,15.93451383]
[1739342963174,0.063,194.36,194.35,15.93451383]
[1739342963672,0.063,194.36,194.34,29.34636236]
[1739342963966,0.063,194.36,194.31,13.66282853]
[1739342963967,0.063,194.36,194.31,16.18549383]
[1739342964475,0.063,194.36,194.3,21.08101383]
[1739342964641,0.063,194.36,194.32,15.93451383]
[1739342964838,0.063,194.36,194.33,15.93451383]
[1739342965963,0.063,194.36,194.35,15.93451383]
[1739342966472,0.063,194.36,194.35,21.07981383]
[1739342967971,0.063,194.36,194.35,15.93451383]
[1739342968178,0.063,194.36,194.34,15.93451383]
[1739342968356,0.063,194.36,194.33,21.08021383]
[1739342968556,0.063,194.36,194.31,15.93451383]
[1739342968882,15.93451383,194.34,194.28,15.93451383]
[1739342969044,15.93451383,194.33,194.26,15.93451383]
[1739342969251,0.063,194.36,194.26,15.93451383]
[1739342969252,15.93451383,194.34,194.28,15.93451383]
[1739342969783,15.93451383,194.35,194.28,21.08141383]
[1739342969950,15.93451383,194.34,194.28,21.08141383]
[1739342970660,15.93451383,194.32,194.26,15.93451383]
[1739342970977,15.93451383,194.3,194.24,15.93451383]
[1739342971265,15.93451383,194.31,194.24,15.93451383]
[1739342971575,15.93451383,194.31,194.25,15.93451383]
[1739342971780,15.93451383,194.34,194.27,15.93451383]
[1739342971980,15.93451383,194.34,194.28,15.93451383]
[1739342972468,15.93451383,194.34,194.27,15.93451383]
[1739342972844,15.93451383,194.34,194.28,15.93451383]
[1739342973962,15.93451383,194.34,194.27,21.08171383]
[1739342974457,15.93451383,194.32,194.25,15.93451383]
[1739342975051,15.93451383,194.31,194.25,15.93451383]
[1739342975247,15.93451383,194.33,194.27,15.93451383]
[1739342975763,15.93451383,194.34,194.27,15.93451383]
[1739342975963,15.93451383,194.33,194.27,15.93451383]
[1739342976152,15.93451383,194.32,194.26,21.08221383]
[1739342977167,15.93451383,194.32,194.26,5.1477]
[1739342977368,15.93451383,194.32,194.26,15.93451383]
[1739342978451,1.5436,194.34,194.27,15.93451383]
[1739342978452,15.93451383,194.33,194.27,15.93451383]
[1739342979077,17.47821383,194.33,194.27,15.93451383]
[1739342979478,17.47821383,194.33,194.26,15.93451383]
[1739342979769,15.93451383,194.34,194.28,15.93451383]
[1739342980358,15.93451383,194.33,194.27,15.93451383]
[1739342980557,15.93451383,194.33,194.26,15.93451383]
[1739342981058,15.93451383,194.33,194.26,21.08201383]
[1739342981273,17.47821383,194.34,194.27,15.93451383]
[1739342981879,22.37981383,194.36,194.3,15.93451383]
[1739342982265,0.063,194.34,194.28,15.93451383]
[1739342982970,15.99751383,194.34,194.28,15.93451383]
[1739342983170,15.93451383,194.33,194.27,15.93451383]
[1739342984472,15.93451383,194.33,194.27,21.08181383]
[1739342984676,17.54121383,194.34,194.27,21.08181383]
[1739342985162,15.99751383,194.34,194.27,21.08181383]
[1739342985565,17.54121383,194.34,194.27,21.08181383]
[1739342985778,17.54121383,194.34,194.27,15.93451383]
[1739342985975,15.93451383,194.32,194.26,15.96451383]
[1739342986187,15.93451383,194.3,194.26,0.03]
[1739342986992,15.93451383,194.29,194.26,0.03]
[1739342987174,15.93451383,194.28,194.26,0.03]
[1739342987372,15.93451383,194.29,194.26,0.03]
[1739342987766,15.93451383,194.3,194.26,0.03]
[1739342988874,15.93451383,194.31,194.26,0.03]
[1739342990080,15.93451383,194.33,194.26,15.96451383]
[1739342990686,0.063,194.34,194.3,15.93451383]
[1739342991793,0.063,194.34,194.31,15.93451383]
[1739342993395,0.063,194.34,194.3,21.08091383]
[1739342995179,0.063,194.34,194.31,15.93451383]
[1739342995493,0.063,194.34,194.32,15.93451383]
[1739342998076,0.063,194.34,194.32,21.08051383]
[1739342999395,0.063,194.34,194.32,5.146]
[1739343001295,0.063,194.34,194.32,15.93451383]
[1739343002810,0.063,194.34,194.31,15.93451383]
[1739343002988,0.063,194.34,194.31,21.08081383]
[1739343003309,0.063,194.34,194.29,21.08111383]
[1739343003787,0.063,194.34,194.29,5.1466]
[1739343004297,0.063,194.34,194.29,15.33378849]
[1739343004596,0.063,194.34,194.3,10.18718849]
[1739343004803,0.063,194.34,194.3,15.33368849]
[1739343005109,0.063,194.34,194.29,30.18718849]
[1739343005670,0.063,194.34,194.3,10.18718849]
[1739343006496,0.063,194.34,194.32,10.18718849]
[1739343006881,0.063,194.34,194.32,15.33328849]
[1739343008374,0.063,194.34,194.33,23.59903702]
[1739343009217,0.063,194.34,194.33,23.85001702]
[1739343009386,0.063,194.34,194.33,23.97550702]
[1739343010215,0.063,194.34,194.33,29.24679702]
[1739343010691,0.063,194.34,194.33,29.12130702]
[1739343011005,0.063,194.34,194.33,15.33298849]
[1739343011618,0.063,194.34,194.33,28.74483702]
[1739343011801,0.063,194.34,194.33,28.99581702]
[1739343012207,0.063,194.34,194.33,23.59903702]
[1739343012411,0.063,194.34,194.32,10.18718849]
[1739343012714,0.063,194.34,194.33,10.18718849]
[1739343013289,0.063,194.34,194.31,10.18718849]
[1739343013493,0.063,194.34,194.3,0.03]
[1739343013803,10.25018849,194.34,194.3,0.03]
[1739343014205,10.18718849,194.31,194.3,0.03]
[1739343015521,11.73108849,194.31,194.3,0.03]
[1739343018189,11.85657849,194.31,194.27,0.03]
[1739343018523,10.18718849,194.28,194.27,0.03]
[1739343018892,11.82317849,194.28,194.27,0.0001]
[1739343019508,13.36727849,194.28,194.27,0.0001]
[1739343020406,20.00707849,194.28,194.27,0.0001]
[1739343021595,25.75698602,194.28,194.27,0.0001]
[1739343022709,25.63149602,194.28,194.27,0.0001]
[1739343025106,18.99169602,194.28,194.27,0.0001]
[1739343025306,98.43709602,194.3,194.27,0.0001]
[1739343025690,82.5,194.3,194.27,0.0001]
[1739343026311,0.063,194.31,194.27,15.93719602]
[1739343026496,0.063,194.31,194.27,0.0001]
[1739343030716,0.063,194.31,194.28,15.93709602]
[1739343031608,0.063,194.31,194.29,15.93709602]
[1739343033017,0.063,194.31,194.28,15.93709602]
[1739343033320,0.063,194.31,194.27,15.93719602]
[1739343033615,16.00009602,194.31,194.27,0.0001]
[1739343033791,15.93709602,194.3,194.27,0.0001]
[1739343034604,0.063,194.31,194.27,15.93719602]
[1739343035095,0.063,194.31,194.28,5.1472]
[1739343035796,0.063,194.31,194.28,21.08429602]
[1739343037704,0.063,194.31,194.29,15.93709602]
[1739343038304,0.063,194.31,194.28,21.08429602]
[1739343038506,0.063,194.31,194.29,13.41184853]
[1739343039203,0.063,194.31,194.3,5.1466]
[1739343040018,0.063,194.31,194.3,18.55844853]
[1739343040200,0.063,194.31,194.3,34.74652455]
[1739343047711,0.063,194.31,194.3,5.1466]
[1739343049307,0.063,194.31,194.3,28.74441353]
[1739343051120,0.063,194.31,194.3,18.55844853]
[1739343051324,0.063,194.31,194.28,15.332965]
[1739343051730,0.063,194.31,194.29,10.185965]
[1739343052851,0.063,194.31,194.3,15.332565]
[1739343053012,0.063,194.31,194.3,28.74441353]
[1739343053428,0.063,194.31,194.3,5.1466]
[1739343055244,0.063,194.31,194.3,28.74441353]
[1739343055834,20.12549,194.28,194.27,0.0001]
[1739343056216,0.12549,194.27,194.26,0.03]
[1739343056427,0.12549,194.27,194.17,8.08289096]
[1739343056428,5.55018544,194.27,194.17,8.08289096]
[1739343056735,20.0,194.23,194.17,8.08289096]
[1739343056937,10.185965,194.18,194.17,8.08289096]
[1739343057445,10.185965,194.18,194.17,8.11289096]
[1739343057744,15.94848329,194.18,194.17,8.11289096]
[1739343059529,15.94848329,194.18,194.17,0.03]
[1739343060744,17.50848329,194.18,194.17,0.03]
[1739343064870,15.94848329,194.18,194.17,0.03]
[1739343065564,15.94848329,194.19,194.17,0.03]
[1739343066463,15.94848329,194.18,194.17,0.03]
[1739343067047,15.94848329,194.19,194.17,0.03]
[1739343067261,1.5434,194.22,194.17,0.03]
[1739343067262,15.94848329,194.2,194.17,0.03]
[1739343067881,15.94848329,194.19,194.17,0.03]
[1739343068368,15.94848329,194.21,194.17,0.03]
[1739343070553,15.94848329,194.18,194.17,0.03]
[1739343070940,15.94848329,194.19,194.17,0.03]
[1739343072342,15.94848329,194.18,194.17,0.03]
[1739343074256,17.49338329,194.18,194.17,0.03]
[1739343077547,19.01928329,194.18,194.17,0.03]
[1739343078557,19.01928329,194.18,194.16,0.03]
[1739343078558,25.89525329,194.18,194.16,0.03]
[1739343078763,16.94848329,194.17,194.16,0.03]
[1739343079269,17.32495329,194.17,194.16,0.03]
[1739343079473,15.94848329,194.11,194.1,0.03]
[1739343080270,15.94848329,194.14,194.1,0.03]
[1739343080482,15.94848329,194.15,194.1,0.03]
[1739343081873,15.94848329,194.16,194.1,0.03]
[1739343082565,15.94848329,194.17,194.11,15.94848329]
[1739343082757,15.94848329,194.18,194.12,15.94848329]
[1739343082956,15.94848329,194.18,194.11,15.94848329]
[1739343083156,15.94848329,194.17,194.11,15.94848329]
[1739343083468,15.94848329,194.17,194.12,5.1514]
[1739343084045,15.94848329,194.19,194.13,15.94848329]
[1739343084249,15.94848329,194.21,194.15,15.94848329]
[1739343084441,15.94848329,194.22,194.16,15.94848329]
[1739343085081,15.94848329,194.21,194.15,15.94848329]
[1739343085377,15.94848329,194.22,194.15,15.94848329]
[1739343085569,15.94848329,194.21,194.15,15.94848329]
[1739343087272,15.94848329,194.22,194.16,29.36033182]
[1739343087474,15.94848329,194.24,194.18,15.94848329]
[1739343087852,15.94848329,194.25,194.18,15.94848329]
[1739343088486,16.01148329,194.26,194.2,15.94848329]
[1739343088788,0.063,194.26,194.21,15.94848329]
[1739343090269,0.063,194.26,194.22,15.94848329]
[1739343090668,0.063,194.26,194.21,15.94848329]
[1739343091594,16.01148329,194.26,194.2,29.36033182]
[1739343091788,16.01148329,194.26,194.2,13.41184853]
[1739343092168,16.01148329,194.26,194.2,29.36033182]
[1739343092487,0.063,194.26,194.2,29.36033182]
[1739343092698,0.063,194.26,194.22,15.94848329]
[1739343092866,0.063,194.26,194.23,15.94848329]
[1739343093076,0.063,194.26,194.24,15.94848329]
[1739343093387,0.063,194.26,194.21,13.41184853]
[1739343093388,0.063,194.26,194.22,16.19946329]